bitfinex-derivatives/quotes_ETHF0:USTF0_20250810
["timestamp","ask_amount","ask_price","bid_price","bid_amount"]
[1754833947683,1.5654,4187.6,4187.5,56.5931]
[1754833947888,1.5654,4187.6,4187.5,21.903]
[1754833948075,1.19377,4188.2,4187.1,0.73782]
[1754833948076,1.62418,4187.5,4187.4,0.1886]
[1754833948283,1.1938,4188.1,4187.2,0.2811]
[1754833948284,1.3058,4187.3,4187.2,1.0477]
[1754833948583,1.3058,4187.3,4187.2,23.2099]
[1754833948782,1.3058,4187.3,4187.2,23.491]
[1754833949479,1.5654,4187.3,4187.2,23.491]
[1754833949687,1.5654,4187.3,4187.2,23.2308]
[1754833949983,1.78348,4186.6,4186.5,23.492]
[1754833950288,0.4576,4186.6,4186.5,23.492]
[1754833951283,0.47763,4187.1,4187.0,1.3079]
[1754833951481,2.04303,4187.1,4187.0,23.2458]
[1754833951679,0.47766,4186.8,4186.7,0.2811]
[1754833951879,2.04306,4186.8,4186.7,23.2458]
[1754833952278,2.04306,4186.8,4186.7,22.5507]
[1754833952482,0.6307,4186.5,4186.4,0.6574]
[1754833952684,1.5654,4186.5,4186.4,22.5734]
[1754833953082,1.5654,4186.5,4186.4,23.2448]
[1754833953383,1.5654,4186.5,4186.4,22.8308]
[1754833954481,0.47767,4186.8,4186.5,0.47769]
[1754833954681,2.04307,4186.8,4186.7,1.589]
[1754833954881,2.04307,4186.8,4186.7,21.921]
[1754833955283,1.10841,4186.4,4186.3,0.6337]
[1754833955483,1.5903,4186.4,4186.3,23.2157]
[1754833956189,1.5903,4186.4,4186.3,23.4823]
[1754833956987,1.1502,4186.8,4186.7,0.4466]
[1754833957184,1.3064,4186.8,4186.7,23.4696]
[1754833958081,0.47763,4187.0,4186.7,22.539]
[1754833958280,1.18783,4187.0,4186.9,1.5516]
[1754833958585,1.78401,4187.3,4187.2,1.5516]
[1754833958788,1.78401,4187.3,4187.2,23.4666]
[1754833959186,2.05071,4187.3,4187.2,23.4666]
[1754833959484,1.5731,4187.3,4187.2,23.4666]
[1754833959789,1.3064,4187.3,4187.2,23.4666]
[1754833960180,0.7102,4187.3,4187.2,23.4666]
[1754833960386,0.47758,4187.5,4187.2,23.4666]
[1754833960687,2.05068,4187.5,4187.4,1.285]
[1754833960889,2.05068,4187.5,4187.4,0.6116]
[1754833962290,2.05068,4187.5,4187.2,21.915]
[1754833962492,0.1795,4187.4,4187.3,0.1744]
[1754833962792,0.6135,4187.4,4187.3,0.356]
[1754833962987,0.6135,4187.4,4187.2,22.579]
[1754833962988,0.6135,4187.4,4187.2,22.1706]
[1754833963182,1.5731,4187.4,4187.2,22.1706]
[1754833963387,1.5731,4187.3,4187.2,22.1706]
[1754833963792,1.5731,4187.3,4187.2,22.5266]
[1754833964789,1.5731,4187.3,4187.2,23.2]
[1754833965192,1.5731,4187.3,4187.2,23.4666]
[1754833965387,1.5731,4187.3,4187.2,22.9444]
[1754833965797,1.5731,4187.3,4187.2,23.4666]
[1754833967000,1.3064,4187.3,4187.2,23.4666]
[1754833967699,1.5731,4187.3,4187.2,23.4666]
[1754833968303,1.5731,4187.3,4187.2,23.2]
[1754833968503,1.5731,4187.3,4187.2,23.4666]
[1754833968802,1.5731,4187.3,4187.2,23.94421]
[1754833968996,1.3064,4187.3,4187.2,23.94421]
[1754833969198,1.1331,4187.3,4187.2,23.94421]
[1754833969397,0.1795,4187.4,4187.3,1.285]
[1754833969598,1.5731,4187.4,4187.3,1.5516]
[1754833969799,1.5731,4187.4,4187.3,0.6116]
[1754833970102,2.0507,4187.3,4187.2,21.915]
[1754833970310,2.05076,4186.8,4186.7,0.6116]
[1754833970608,2.05076,4186.8,4186.7,22.264]
[1754833970811,2.05076,4186.8,4186.7,21.908]
[1754833972103,2.05076,4186.8,4186.7,22.264]
[1754833972308,2.05076,4186.8,4186.7,1.285]
[1754833973010,2.05076,4186.8,4186.7,0.356]
[1754833973502,2.05076,4186.8,4186.4,22.3164]
[1754833973503,1.09119,4186.5,4186.4,23.193]
[1754833973707,2.05079,4186.5,4186.4,23.193]
[1754833974108,2.05079,4186.5,4186.4,22.264]
[1754833974498,2.05079,4186.5,4186.4,22.0896]
[1754833974898,2.05079,4186.5,4186.4,22.5196]
[1754833975210,1.3064,4186.5,4186.4,23.4596]
[1754833975402,2.0507,4187.3,4187.2,0.621]
[1754833975809,2.0507,4187.3,4187.2,0.6116]
[1754833976004,2.0507,4187.3,4186.9,0.675]
[1754833976005,0.47763,4187.0,4186.8,21.909]
[1754833976211,1.3579,4186.4,4186.3,0.621]
[1754833976508,2.0508,4186.4,4186.3,23.194]
[1754833977499,0.7102,4186.5,4186.4,1.8477]
[1754833977704,0.1795,4186.7,4186.6,1.09868]
[1754833977905,0.65714,4187.0,4186.9,0.4394]
[1754833978106,0.1795,4187.0,4186.9,0.621]
[1754833978409,0.1795,4187.0,4186.9,1.5516]
[1754833978605,0.7102,4187.0,4186.9,1.5516]
[1754833979006,1.514,4187.3,4187.2,1.5516]
[1754833979312,2.0507,4187.3,4187.2,1.5516]
[1754833979709,1.5731,4187.3,4187.2,1.5516]
[1754833980408,1.5731,4187.3,4187.2,1.285]
[1754833981511,1.5731,4186.9,4186.8,1.0294]
[1754833981714,1.3064,4186.9,4186.8,1.296]
[1754833981913,1.3064,4186.9,4186.8,1.5516]
[1754833982403,0.8835,4186.9,4186.8,1.5516]
[1754833982608,0.7102,4186.9,4186.8,1.5516]
[1754833982909,0.4402,4186.9,4186.8,1.5516]
[1754833984506,1.3064,4186.9,4186.8,1.5516]
[1754833984711,2.05074,4186.9,4186.8,0.6116]
[1754833984910,0.6135,4186.3,4186.2,3.17472317]
[1754833985108,1.5731,4186.3,4186.2,25.08472317]
[1754833985517,1.5731,4186.3,4186.2,25.36012317]
[1754833986019,1.5731,4186.3,4186.2,23.2148]
[1754833987008,0.6105,4185.9,4185.8,2.77752317]
[1754833987211,1.5435,4185.9,4185.8,22.2668]
[1754833987514,1.5435,4185.9,4185.8,22.5422]
[1754833988116,1.5435,4185.9,4185.8,22.2668]
[1754833988519,0.4321,4185.4,4185.3,2.32462317]
[1754833988716,1.5435,4185.4,4185.3,22.0903]
[1754833988911,1.5435,4185.4,4185.3,22.2678]
[1754833989213,0.6105,4185.4,4185.1,2.14532317]
[1754833989520,0.933,4185.7,4185.3,0.75323]
[1754833989721,1.5435,4185.6,4185.5,1.5556]
[1754833991216,0.933,4185.5,4185.2,21.911]
[1754833991419,0.6105,4184.9,4184.5,2.55552317]
[1754833991718,0.6105,4184.5,4184.4,0.6146]
[1754833991908,1.5435,4184.5,4184.4,22.8]
[1754833992112,1.5435,4184.5,4184.4,23.2102]
[1754833992308,1.5435,4184.5,4184.4,23.4656]
[1754833992518,0.8801,4185.1,4185.0,0.3568]
[1754833992710,0.8801,4185.1,4185.0,0.89]
[1754833992915,0.8801,4185.1,4185.0,0.6322]
[1754833993115,1.5435,4185.1,4185.0,0.3568]
[1754833994423,0.6105,4184.5,4184.4,0.89]
[1754833994616,1.5435,4184.5,4184.4,22.802]
[1754833994921,1.5435,4184.5,4184.4,23.2122]
[1754833995220,0.7091,4184.5,4184.4,23.4676]
[1754833995920,1.0955,4184.8,4184.7,1.5556]
[1754833996118,0.47781,4185.5,4185.1,0.47785]
[1754833996310,0.7091,4185.5,4185.4,0.6146]
[1754833996515,6.0,4185.6,4185.5,1.0924]
[1754833996714,6.0,4185.6,4185.5,2.0334]
[1754833996914,6.8185,4185.6,4185.5,1.5556]
[1754833997116,7.5435,4185.6,4185.5,1.5556]
[1754833997321,7.5435,4185.6,4185.5,0.3568]
[1754833997920,0.933,4185.4,4185.1,21.914]
[1754833998123,1.0955,4185.2,4185.1,23.94744]
[1754833998620,0.7091,4185.2,4185.1,23.94744]
[1754833999621,1.5435,4185.2,4185.1,0.1775]
[1754833999819,1.5435,4185.2,4185.0,21.914]
[1754834000025,1.5435,4185.1,4185.0,21.914]
[1754834000424,0.9969,4184.9,4184.7,0.75329]
[1754834000624,1.5435,4184.7,4184.6,22.3919]
[1754834001121,1.5435,4184.7,4184.6,21.914]
[1754834001418,1.5435,4184.3,4184.2,0.3568]
[1754834001625,1.5435,4184.3,4184.2,22.0915]
[1754834002020,1.5435,4184.3,4184.2,23.4696]
[1754834002219,1.2739,4184.3,4184.2,23.4696]
[1754834002418,1.5435,4184.3,4184.2,23.4696]
[1754834002619,1.5435,4184.3,4184.2,23.2142]
[1754834002824,1.5435,4184.3,4184.2,21.914]
[1754834004118,0.277,4184.5,4184.3,0.47794]
[1754834004320,0.277,4184.5,4184.4,1.5556]
[1754834004725,0.7091,4184.5,4184.4,1.5556]
[1754834004920,0.6634,4184.8,4184.5,0.47792]
[1754834005127,0.4321,4184.9,4184.8,1.5556]
[1754834005720,1.74432,4185.4,4185.3,0.3568]
[1754834005920,1.74432,4185.4,4185.3,0.6322]
[1754834006127,1.2665,4185.4,4185.3,0.6322]
[1754834006326,1.5435,4185.4,4185.3,0.6322]
[1754834007222,1.5435,4185.4,4185.3,1.3002]
[1754834007532,1.5435,4185.4,4185.3,1.5556]
[1754834008230,0.7091,4185.4,4185.3,1.5556]
[1754834008423,0.4321,4185.4,4185.3,1.09242]
[1754834008623,0.7091,4185.4,4185.3,1.62322]
[1754834008922,0.2566,4185.4,4185.3,1.62322]
[1754834009129,0.277,4185.8,4185.5,2.0334]
[1754834010032,0.3864,4186.1,4185.5,2.0334]
[1754834010224,7.2739,4185.6,4185.5,1.5556]
[1754834010527,7.5435,4185.6,4185.5,0.89]
[1754834010727,6.6105,4185.6,4185.4,0.47781]
[1754834010926,1.5435,4185.5,4185.3,0.47783]
[1754834011124,0.6105,4185.5,4185.4,0.1775]
[1754834011319,0.4321,4185.5,4185.4,1.5556]
[1754834011521,6.0,4185.6,4185.5,2.0334]
[1754834014632,5.575,4185.6,4185.5,2.0334]
[1754834015034,5.575,4185.6,4185.5,2.23197614]
[1754834015231,5.5252,4185.6,4185.5,8.65697614]
[1754834015426,0.19037577,4185.6,4185.5,13.42763674]
[1754834015631,5.77e-06,4185.6,4185.5,11.28231357]
[1754834015830,5.77e-06,4185.6,4185.5,45.69831357]
[1754834016640,0.6105,4187.1,4187.0,0.47763]
[1754834016934,0.6105,4187.1,4186.8,0.47765]
[1754834017830,0.47763,4187.0,4186.7,22.5786]
[1754834018024,0.6105,4186.8,4186.4,22.3937]
[1754834018232,0.6105,4186.8,4186.7,0.1838]
[1754834018428,0.6105,4186.8,4186.7,1.2783]
[1754834018630,1.5701,4186.8,4186.7,1.2783]
[1754834018830,1.5701,4186.8,4186.7,2.65576141]
[1754834019230,0.956,4186.8,4186.7,2.65576141]
[1754834019431,1.5701,4187.2,4187.1,0.1838]
[1754834019631,0.6105,4187.2,4187.0,0.47763]
[1754834019831,1.5701,4187.1,4187.0,0.66143]
[1754834020033,1.5701,4187.1,4187.0,1.31463]
[1754834020234,1.5701,4187.1,4187.0,2.86939141]
[1754834020440,1.5701,4187.1,4187.0,2.39176141]
[1754834021132,1.5701,4187.1,4187.0,2.65576141]
[1754834021327,1.5701,4187.1,4187.0,1.37746141]
[1754834022138,1.5701,4187.1,4187.0,1.56126141]
[1754834022332,1.5701,4187.1,4187.0,2.65576141]
[1754834022533,1.1533,4187.1,4187.0,2.93186141]
[1754834022736,0.2788,4187.5,4187.0,2.31416141]
[1754834022940,1.5701,4187.5,4187.4,1.2783]
[1754834023633,1.5701,4187.5,4187.4,2.65576141]
[1754834024035,0.4527,4187.5,4187.4,2.93186141]
[1754834024431,0.4527,4187.8,4187.7,1.2783]
[1754834024630,0.6105,4188.3,4188.2,1.0952]
[1754834024830,0.6105,4188.3,4188.2,1.4918]
[1754834024831,1.5701,4188.3,4188.2,1.4918]
[1754834025037,1.5701,4188.3,4188.2,1.7558]
[1754834025242,1.5701,4188.0,4187.9,0.47752]
[1754834025543,1.5701,4188.0,4187.9,2.03878141]
[1754834025843,1.5701,4188.0,4187.9,3.13328141]
[1754834026137,1.5701,4188.0,4187.9,1.85499141]
[1754834026347,0.9596,4187.9,4187.7,0.47755]
[1754834026548,1.5701,4187.8,4187.7,0.91795]
[1754834026842,1.5701,4187.8,4187.7,1.31455]
[1754834027043,1.5701,4187.8,4187.7,2.69201141]
[1754834027244,1.5701,4187.8,4187.7,1.56126141]
[1754834027446,1.5701,4187.8,4187.7,1.99516141]
[1754834027646,1.5701,4187.8,4187.7,2.39176141]
[1754834027942,1.5701,4187.8,4187.7,1.99516141]
[1754834028344,1.5701,4187.8,4187.7,2.65576141]
[1754834028547,1.2913,4188.2,4188.1,1.0143]
[1754834028941,1.2913,4188.2,4188.1,0.6177]
[1754834029144,1.5701,4188.2,4188.1,0.6177]
[1754834029346,1.5701,4188.2,4188.1,2.65576141]
[1754834029847,1.5701,4188.2,4188.1,2.93186141]
[1754834030149,1.1299,4188.2,4188.1,2.65576141]
[1754834030342,1.5701,4188.2,4188.1,2.93186141]
[1754834030646,1.5701,4188.2,4188.1,2.65576141]
[1754834032449,1.5701,4188.2,4188.1,2.39176141]
[1754834032943,1.5701,4188.2,4188.1,2.65576141]
[1754834033142,1.1533,4188.2,4188.1,2.65576141]
[1754834033347,1.1533,4188.2,4188.1,2.93186141]
[1754834033546,1.5701,4188.2,4188.1,2.93186141]
[1754834033743,1.5701,4188.2,4188.1,2.65576141]
[1754834034451,1.5701,4188.2,4188.1,1.37746141]
[1754834034648,1.5701,4187.7,4187.6,0.47756]
[1754834034946,1.5701,4187.7,4187.6,22.38556]
[1754834035544,1.5701,4187.7,4187.6,21.908]
[1754834036744,1.5701,4187.7,4187.6,22.9223]
[1754834036944,1.5701,4187.7,4187.6,23.1863]
[1754834037144,0.6289,4187.7,4187.6,23.4624]
[1754834037442,0.6808,4188.0,4187.9,1.2783]
[1754834037443,1.5701,4188.0,4187.9,1.2783]
[1754834037946,1.5701,4188.0,4187.9,1.5544]
[1754834038143,0.6956,4188.3,4188.0,0.47752]
[1754834038453,1.5701,4188.3,4188.2,1.2783]
[1754834039750,0.2604,4188.3,4188.2,1.0143]
[1754834039951,1.19328,4189.9,4188.5,1.0143]
[1754834039952,1.5701,4188.6,4188.5,1.0143]
[1754834040952,0.6105,4188.2,4188.1,23.3968]
[1754834041153,1.5701,4188.2,4188.1,25.03826141]
[1754834042560,1.5701,4188.2,4188.1,25.31436141]
[1754834043164,1.5701,4188.2,4188.1,24.77426141]
[1754834043363,1.5701,4188.2,4188.1,25.03826141]
[1754834044666,0.2788,4188.2,4188.1,25.31436141]
[1754834045462,1.151,4188.5,4188.4,1.13237]
[1754834045659,1.151,4188.5,4188.4,1.5818]
[1754834045864,1.0457,4189.0,4188.9,0.6549]
[1754834046162,1.0457,4189.0,4188.9,1.3056]
[1754834046461,1.5912,4189.0,4188.9,1.5818]
[1754834046965,1.5912,4189.0,4188.9,2.95926141]
[1754834047155,1.1703,4189.0,4188.9,2.95926141]
[1754834047862,1.5912,4189.0,4188.9,2.95926141]
[1754834048055,1.5912,4189.0,4188.9,2.68306141]
[1754834048666,1.3208,4189.4,4189.3,0.6549]
[1754834048963,1.3208,4189.4,4189.3,22.9444]
[1754834049269,1.5912,4189.4,4189.3,22.9444]
[1754834050360,0.18,4189.8,4189.7,0.66173]
[1754834050563,0.6248,4189.4,4189.3,2.70873141]
[1754834050865,1.5912,4189.4,4189.3,1.37746141]
[1754834051060,1.5912,4189.4,4189.3,23.27846141]
[1754834051262,1.5912,4189.4,4189.3,23.85036141]
[1754834051562,1.5912,4189.4,4189.3,24.32086141]
[1754834051767,1.5912,4189.4,4189.3,23.74486141]
[1754834052163,1.5912,4189.0,4188.9,1.13231]
[1754834052362,1.5912,4189.0,4188.9,25.05947141]
[1754834053665,1.5912,4189.0,4188.9,25.33567141]
[1754834053963,1.5912,4189.0,4188.9,24.31886141]
[1754834055268,1.5912,4189.0,4188.9,23.74286141]
[1754834055562,1.5912,4189.0,4188.9,24.31886141]
[1754834055775,1.3208,4189.4,4189.3,1.0424]
[1754834056066,1.3208,4189.4,4189.3,23.2036]
[1754834056466,1.5912,4189.4,4189.3,23.2036]
[1754834056963,1.5912,4189.4,4189.3,21.898]
[1754834059060,1.5912,4189.4,4189.3,22.0824]
[1754834059258,1.5912,4189.4,4189.3,22.4699]
[1754834059463,1.5912,4189.4,4189.3,21.898]
[1754834059772,1.5912,4189.4,4188.0,0.3875]
[1754834059773,0.2704,4188.7,4188.0,0.3875]
[1754834059965,0.6248,4188.2,4188.1,0.6549]
[1754834060262,1.5912,4188.1,4188.0,23.92936141]
[1754834061069,1.5912,4188.1,4188.0,23.27446141]
[1754834061466,1.5912,4188.1,4188.0,23.45886141]
[1754834061673,0.8952,4188.4,4188.3,1.5818]
[1754834062172,0.8952,4188.4,4188.3,2.95926141]
[1754834062364,0.2704,4188.4,4188.3,2.95926141]
[1754834063476,0.4504,4188.4,4188.3,2.95926141]
[1754834064164,0.2704,4188.4,4188.3,2.95926141]
[1754834064767,0.4504,4188.4,4188.3,2.95926141]
[1754834064965,0.9062,4188.4,4188.3,2.95926141]
[1754834065168,1.5912,4188.4,4188.3,1.37746141]
[1754834065472,1.1703,4188.0,4187.9,2.05933]
[1754834065666,1.1703,4188.0,4187.9,23.95733]
[1754834065865,1.5912,4188.0,4187.9,24.12936141]
[1754834066062,1.5912,4188.0,4187.3,2.14170151]
[1754834066063,1.5912,4187.4,4187.3,2.14170151]
[1754834066263,1.5912,4187.1,4187.0,1.42143472]
[1754834066469,0.9062,4186.1,4186.0,1.307]
[1754834066675,0.9062,4186.1,4186.0,1.5876]
[1754834066866,0.2704,4186.1,4186.0,1.5876]
[1754834067071,0.9062,4186.6,4185.7,0.9327]
[1754834067272,0.6311,4185.9,4185.8,23.306]
[1754834067471,0.9062,4185.9,4185.8,23.5706]
[1754834067771,0.3607,4185.9,4185.8,23.5706]
[1754834067969,0.9062,4186.2,4186.1,0.6549]
[1754834068175,0.9062,4186.2,4186.1,1.5876]
[1754834068376,0.9062,4186.2,4186.1,1.0424]
[1754834069072,0.9062,4186.2,4186.1,1.5876]
[1754834070367,0.9062,4186.2,4186.1,0.4664]
[1754834070574,0.9062,4185.9,4185.8,22.265]
[1754834070874,0.9062,4185.3,4185.2,2.06543]
[1754834071074,0.9062,4185.3,4185.2,24.04343]
[1754834071470,0.7255,4185.9,4185.8,0.1844]
[1754834071777,0.18,4185.9,4185.8,1.5876]
[1754834072071,0.47788,4184.9,4184.1,0.47795]
[1754834072372,0.18,4184.2,4184.1,2.68446141]
[1754834072575,0.9062,4184.2,4184.1,2.96506141]
[1754834073873,0.9062,4184.2,4184.1,0.4664]
[1754834074173,0.9062,4184.2,4184.1,22.574]
[1754834074480,0.9062,4184.2,4184.1,22.7584]
[1754834074680,0.9062,4184.6,4184.5,2.06552]
[1754834074876,1.19436,4186.1,4184.7,0.2646]
[1754834074877,0.2751,4184.9,4184.7,0.2646]
[1754834075072,0.47784,4185.2,4184.7,0.2646]
[1754834075073,0.5455,4184.8,4184.7,0.6521]
[1754834075280,0.5455,4184.8,4184.7,0.9327]
[1754834075479,0.5467,4184.8,4184.7,2.31016141]
[1754834076675,0.0012,4184.7,4184.6,22.279]
[1754834076880,0.8909,4184.7,4184.6,22.279]
[1754834077077,0.8909,4184.7,4184.6,23.8626]
[1754834077375,0.3456,4184.7,4184.2,0.4009]
[1754834077575,0.6206,4183.6,4183.5,1.20283]
[1754834077772,0.8909,4183.6,4183.5,1.1257]
[1754834077977,0.5433,4183.4,4183.3,0.6818]
[1754834078174,0.5433,4183.4,4183.3,2.05926141]
[1754834078380,0.5433,4183.4,4183.3,1.37746141]
[1754834078578,1.19488,4184.3,4183.2,22.294]
[1754834078881,0.5433,4183.3,4183.2,22.294]
[1754834079874,0.5421,4183.8,4183.2,23.67146141]
[1754834080075,0.5433,4183.9,4183.3,0.4009]
[1754834080275,0.5421,4183.7,4183.2,23.66846141]
[1754834080477,0.47803,4183.6,4183.2,1.85552141]
[1754834080675,0.47803,4183.6,4183.2,24.14652141]
[1754834080878,0.47801,4183.8,4183.5,0.47803]
[1754834081079,0.47803,4183.6,4183.2,23.66846141]
[1754834081280,0.47801,4183.8,4183.4,0.47804]
[1754834081475,0.5433,4183.7,4183.4,0.47804]
[1754834081681,0.47801,4183.8,4183.4,0.47804]
[1754834081880,0.5433,4183.5,4183.4,0.47804]
[1754834082083,0.5433,4184.7,4183.7,0.47801]
[1754834082376,0.5433,4184.6,4183.7,0.47801]
[1754834082576,0.5421,4184.4,4183.7,0.47801]
[1754834082782,0.47798,4184.0,4183.7,0.47801]
[1754834082976,0.5433,4183.9,4183.6,0.47802]
[1754834083179,0.5433,4184.6,4183.0,1.37746141]
[1754834083384,0.47804,4183.5,4183.1,22.278]
[1754834083584,0.47804,4183.5,4183.1,22.6789]
[1754834083785,0.5433,4183.2,4183.1,22.6789]
[1754834083981,0.5433,4183.2,4183.1,24.05636141]
[1754834084583,0.8909,4183.2,4183.1,2.40316141]
[1754834085086,0.8909,4183.2,4183.1,2.96106141]
[1754834085279,0.8877,4183.2,4183.1,2.96106141]
[1754834085487,1.09389,4184.0,4183.9,0.6248]
[1754834085678,0.6147,4184.4,4184.3,0.2659]
[1754834085878,0.6159,4184.4,4184.3,0.2659]
[1754834086079,0.8909,4184.4,4184.3,0.2659]
[1754834086285,0.8909,4184.4,4184.3,1.0257]
[1754834086484,0.5433,4185.4,4184.3,0.9588]
[1754834086686,0.4779,4184.7,4184.4,0.47793]
[1754834086887,0.5421,4184.6,4184.5,0.9588]
[1754834087083,0.5433,4184.6,4184.5,0.4009]
[1754834088288,0.2671,4184.6,4184.5,0.4009]
[1754834088490,0.275,4184.6,4184.5,0.2809]
[1754834088687,0.5421,4184.6,4184.5,0.2809]
[1754834088884,0.5433,4184.6,4184.5,0.2809]
[1754834089082,0.5433,4184.6,4184.5,0.6818]
[1754834089285,0.47785,4185.1,4184.7,0.4779]
[1754834089487,0.65131,4185.5,4185.4,0.4478]
[1754834089693,0.82344,4185.2,4185.1,0.9057]
[1754834089885,0.0012,4185.8,4185.2,0.47784]
[1754834090089,0.3456,4185.7,4185.6,0.4478]
[1754834090389,0.3468,4185.7,4185.6,1.5836]
[1754834090593,0.8889,4185.7,4185.6,1.5836]
[1754834091990,0.3456,4185.7,4185.6,2.96106141]
[1754834092791,0.5421,4186.1,4185.7,0.47778]
[1754834093089,1.3674,4186.4,4186.3,0.4478]
[1754834093287,1.3686,4186.4,4186.3,1.5836]
[1754834093489,1.3686,4186.4,4186.3,0.2659]
[1754834093795,0.82534,4186.1,4186.0,1.0257]
[1754834094093,0.82534,4186.1,4185.7,0.6818]
[1754834094295,0.3456,4185.9,4185.8,0.6668]
[1754834094491,0.8889,4185.9,4185.8,1.5836]
[1754834094796,0.2683,4187.0,4186.1,0.47774]
[1754834094995,0.1735,4186.7,4186.6,0.6248]
[1754834095291,0.8889,4186.7,4186.6,0.6248]
[1754834095594,0.8889,4186.7,4186.6,0.9057]
[1754834095788,0.47763,4187.1,4186.6,2.96106141]
[1754834095993,0.82323,4187.1,4187.0,0.6248]
[1754834096191,1.36653,4187.1,4187.0,1.0257]
[1754834096392,1.36853,4187.1,4187.0,1.0257]
[1754834096590,0.5421,4186.7,4186.3,0.47771]
[1754834096789,0.8877,4186.4,4186.3,1.66041]
[1754834097297,0.3456,4186.4,4186.3,3.43877141]
[1754834097692,0.5421,4186.7,4186.6,1.5836]
[1754834097886,0.47764,4187.0,4186.6,1.5836]
[1754834098092,0.1735,4186.8,4186.7,0.3589]
[1754834098291,0.1735,4186.8,4186.7,0.6248]
[1754834098292,0.8877,4186.8,4186.7,0.6248]
[1754834098595,0.8889,4186.8,4186.7,0.6248]
[1754834098796,0.8889,4186.8,4186.7,1.5836]
[1754834098996,0.8909,4186.8,4186.7,0.6248]
[1754834099187,0.8909,4186.8,4186.7,0.4478]
[1754834099898,0.8909,4186.8,4186.7,0.8487]
[1754834100295,0.8877,4186.8,4186.7,1.5836]
[1754834100494,0.3456,4186.8,4186.7,2.96106141]
[1754834100999,0.8877,4187.2,4187.1,1.0257]
[1754834101200,0.8909,4187.2,4187.1,1.0257]
[1754834101903,0.8909,4187.2,4187.1,1.5836]
[1754834102294,0.7168,4187.6,4187.5,0.3589]
[1754834102601,0.82313,4187.9,4187.8,0.3589]
[1754834102793,0.82313,4187.9,4187.8,1.5836]
[1754834102794,0.6206,4187.9,4187.8,1.5836]
[1754834102993,0.6218,4187.9,4187.8,1.5836]
[1754834103194,0.8889,4187.9,4187.8,1.5836]
[1754834103395,0.8909,4187.9,4187.8,1.0257]
[1754834103700,0.8909,4187.9,4187.8,0.2659]
[1754834104100,0.8909,4187.6,4187.5,0.2659]
[1754834104303,0.8909,4187.6,4187.5,1.37746141]
[1754834104498,0.8909,4187.6,4187.5,1.82526141]
[1754834104698,0.8909,4187.6,4187.5,2.40316141]
[1754834105000,0.8909,4187.6,4187.5,2.96106141]
[1754834105305,0.8877,4187.6,4187.5,2.96106141]
[1754834105594,0.3456,4187.6,4187.5,2.96106141]
[1754834105797,0.5391,4188.0,4187.9,0.47753]
[1754834105997,0.1778,4188.3,4188.2,1.5609]
[1754834106799,0.0011,4188.2,4187.6,0.47757]
[1754834106995,0.606,4187.7,4187.6,3.41593141]
[1754834107196,0.8892,4187.7,4187.6,2.93836141]
[1754834107402,0.8903,4187.7,4187.6,2.93836141]
[1754834107604,0.6344,4187.7,4187.6,2.93836141]
[1754834107804,0.1778,4187.8,4187.7,2.03845]
[1754834107998,0.1778,4187.8,4187.7,1.5609]
[1754834108194,0.8892,4187.8,4187.7,1.5609]
[1754834108405,0.892,4187.8,4187.7,0.2764]
[1754834108902,0.8903,4187.8,4187.7,1.5609]
[1754834109301,0.1778,4187.8,4187.7,2.93836141]
[1754834109506,0.47753,4188.0,4187.7,1.99846141]
[1754834109695,0.65533,4188.0,4187.9,1.5609]
[1754834109993,1.36673,4188.0,4187.9,1.5609]
[1754834110198,1.36953,4188.0,4187.9,2.38796141]
[1754834110401,0.82767,4187.6,4187.5,1.1714]
[1754834110600,1.36787,4187.6,4187.5,1.5609]
[1754834110800,1.36957,4187.6,4187.5,1.37746141]
[1754834111098,1.36957,4187.6,4187.5,1.65386141]
[1754834111298,1.36957,4187.6,4187.5,2.21726141]
[1754834111895,1.36957,4187.6,4187.5,1.37746141]
[1754834112300,0.8903,4187.3,4187.2,1.0105]
[1754834112610,0.3501,4187.3,4187.2,1.5609]
[1754834113003,0.1778,4187.3,4187.2,1.5609]
[1754834113298,0.5391,4187.6,4187.2,1.5609]
[1754834113299,0.3501,4187.6,4187.5,1.5609]
[1754834113504,0.6088,4187.3,4187.2,1.37746141]
[1754834113708,0.892,4187.3,4187.2,2.66516141]
[1754834114010,0.892,4187.3,4187.2,2.93836141]
[1754834114609,0.8892,4187.3,4187.2,2.93836141]
[1754834114805,1.3668,4187.3,4187.2,2.93836141]
[1754834115015,1.3696,4187.3,4187.2,1.37746141]
[1754834115309,1.36963,4187.0,4186.9,1.0105]
[1754834115608,1.36963,4187.0,4186.9,2.38796141]
[1754834116008,1.36963,4187.0,4186.9,2.93836141]
[1754834118104,1.36683,4187.0,4186.9,2.93836141]
[1754834119007,1.36823,4187.0,4186.9,2.66516141]
[1754834119212,1.36913,4187.0,4186.9,1.37746141]
[1754834119514,1.36913,4187.0,4186.9,2.38796141]
[1754834119912,1.36913,4187.0,4186.9,2.93836141]
[1754834120715,1.36777,4186.7,4186.6,1.5609]
[1754834120911,1.36687,4186.7,4186.6,1.5609]
[1754834121414,0.82777,4186.7,4186.6,1.5609]
[1754834121915,1.36687,4186.7,4186.6,1.5609]
[1754834122211,0.82777,4186.7,4186.6,1.5609]
[1754834122415,0.47767,4186.7,4186.6,1.5609]
[1754834123214,1.36917,4186.7,4186.6,1.5609]
[1754834123604,1.19421,4186.6,4186.1,0.5504]
[1754834123803,0.8915,4186.3,4186.2,1.5609]
[1754834124415,0.4777,4186.4,4186.2,2.93836141]
[1754834124610,0.3501,4187.1,4187.0,0.621]